Cogmind - Beta 16 @@@ ROGUE MODE // 2026.01.18 @ 21:39:21 Player: Phxntom Result: Self-destructed Performance ------------- Evolutions (2) 1000 Regions Visited (3) 600 Robots Destroyed (23) 115 Value Destroyed (948) 948 Prototype IDs (0) 0 Alien Tech Used (0) 0 Bonus (0) 0 TOTAL SCORE: 2663 Bonus ------- None Cogmind --------- Core Integrity 266/550 Matter 7/300 Energy 315/315 System Corruption 0% Temperature Cool (9) Movement Core (750) Ox14 Location -8/Materials Parts ------- > --- POWER (2) -------- Deuterium Engine Light Deuterium Engine > --- PROPULSION (3) --- (None) > --- UTILITY (4) ------ Large Storage Unit Structural Scanner Target Analyzer > --- WEAPON (2) ------- Heavy Assault Rifle Missile Launcher > --- INVENTORY (15) --- Deuterium Engine Deuterium Engine Light Angular Momentum Engine Aluminum Leg Aluminum Leg Compact Wheel Structural Scanner Target Analyzer EM Pulse Gun Peak State ------------ > --- POWER ------------ Deuterium Engine Light Nuclear Core > --- PROPULSION ------- Cesium-ion Thruster Cesium-ion Thruster > --- UTILITY ---------- Small Storage Unit Structural Scanner Target Analyzer Improved Weapon Shielding > --- WEAPON ----------- Heavy Assault Rifle Grenade Launcher > --- INVENTORY -------- Light Treads Light Treads Aluminum Leg Aluminum Leg Compact Wheel Structural Scanner EM Pulse Gun Missile Launcher [Rating: 24] Favorites ----------- Power Deuterium Engine Engine Deuterium Engine Power Core Light Nuclear Core Propulsion Wheel Treads Light Treads Wheel Wheel Flight Unit Cesium-ion Thruster Utility Small Storage Unit Device Structural Scanner Storage Small Storage Unit Processor Target Analyzer Protection Improved Weapon Shielding Weapon Medium Laser Energy Gun Medium Laser Ballistic Gun Assault Rifle Launcher Grenade Launcher Build | -11 -10 -10 -8 ------- Run | Yrd Mat Sub Mat Slots Evolved 4 | . . . 4 Power 1 | . . . 1 Propulsion 1 | . . . 1 Utility 2 | . . . 2 Weapon . | . . . . Parts Attached 30 | 4 7 . 19 Power 8 | 1 1 . 6 Engine 5 | 1 . . 4 Core 3 | . 1 . 2 Reactor . | . . . . Propulsion 8 | 2 . . 6 Treads 2 | . . . 2 Leg . | . . . . Wheel 3 | 2 . . 1 Hover . | . . . . Flight 3 | . . . 3 Utility 9 | 1 4 . 4 Device 2 | . 1 . 1 Storage 2 | 1 . . 1 Processor 3 | . 2 . 1 Hackware . | . . . . Protection 2 | . 1 . 1 Artifact . | . . . . Weapon 5 | . 2 . 3 Energy Gun 1 | . 1 . . Energy Cannon . | . . . . Ballistic Gun 2 | . 1 . 1 Ballistic Cannon . | . . . . Launcher 2 | . . . 2 Special Weapon . | . . . . Impact Weapon . | . . . . Slashing Weapon . | . . . . Piercing Weapon . | . . . . Special Melee Weapon . | . . . . Unidentified Prototypes . | . . . . Parts Lost 10 | . . . 10 Power 3 | . . . 3 Propulsion 4 | . . . 4 Utility 1 | . . . 1 Weapon 2 | . . . 2 Highest Loss Streak 4 | . . . 4 To Critical Strikes . | . . . . Average Backups 8 | 5 7 8 8 Power 1 | . 1 1 1 Propulsion 4 | 3 4 5 3 Utility . | . . . 1 Weapon 1 | 1 1 2 1 Tool/Special . | . . . . Unused Backups 10 | . 2 . 8 Power 3 | . . . 3 Propulsion 2 | . . . 2 Utility 3 | . 1 . 2 Weapon 2 | . 1 . 1 Tool/Special . | . . . . Average Slot Usage (%) 88 | . 95 92 82 Engine 9 | . 8 . 11 Core 6 | . 5 14 5 Treads 4 | . . . 8 Wheel 15 | . 27 28 3 Flight 3 | . . . 6 Device 7 | . 5 6 8 Storage 11 | . 14 14 9 Processor 4 | . 4 . 5 Protection 3 | . 1 . 5 Energy Gun 7 | . 13 14 2 Ballistic Gun 11 | . 13 14 8 Launcher 3 | . . . 6 Peak Build Rating 24 | 4 9 9 24 Average Rating 12 | 2 8 8 18 On Entrance 5 | . 4 9 8 Avg Prop Armor Cover (%) . | . . . . Naked Turns . | . . . . Heaviest Build 47 | 10 15 15 47 Greatest Support 40 | 20 20 20 40 Greatest Overweight (x) 4 | 3 . . 4 Average Overweight (x) . | . . . . Largest Inventory Capacity 15 | 8 8 8 15 Average Capacity 10 | 7 8 8 12 Most Carried 10 | 8 8 8 10 Average Carried 8 | 6 7 8 8 Final Capacity 15 | 8 8 8 15 Final Carried 9 | 8 8 8 9 Class Distribution -------------------- 100% | Mutant Dominant Class ---------------- Mutant | -10/Materials Mutant | -10/Subcaves Mutant | -8/Materials Resources | -11 -10 -10 -8 ----------- Run | Yrd Mat Sub Mat Matter Collected 679 | 172 139 44 324 Remotely . | . . . . Salvage Created 907 | . 121 . 786 Parts 26 | . 4 . 22 Haulers Intercepted . | . . . . Recyclers Shooed 1 | . . . 1 Parts Field Recycled . | . . . . Retrieved Matter . | . . . . Parts Self-Destructed . | . . . . Prevented . | . . . . Parts Restored . | . . . . Kills | -11 -10 -10 -8 ------- Run | Yrd Mat Sub Mat Combat Hostiles Destroyed 18 | . 2 . 16 Guns 7 | . 2 . 5 AOE 11 | . . . 11 Classes Destroyed 4 | . 2 . 2 Recycler 4 | . . . 4 Operator 1 | . 1 . . Grunt 14 | . 2 . 12 Sentry 4 | . . . 4 Best Kill Streak 5 | . 2 . 5 Combat Bots Only 4 | . 2 . 4 Max Kills in Single Turn 2 | . 1 . 2 Gunslinging . | . . . . Exploded 1 | . . . 1 Melee . | . . . . Uniques/NPCs Destroyed . | . . . . Combat | -11 -10 -10 -8 -------- Run | Yrd Mat Sub Mat Hostile Shots Fired 109 | . 15 3 91 Missed 24 | . 6 . 18 Hits 85 | . 9 3 73 Melee 2 | . . . 2 Projectile 83 | . 9 3 71 AOE 1 | . . 1 . Critical Strikes 4 | . . . 4 Actively Blocked 1 | . . . 1 Damage Taken 1665 | . 117 136 1412 Core 363 | . 42 37 284 Absorbed by Shields . | . . . . Redirected to Shielding 105 | . . . 105 Regen/Repaired (Parts) 11 | . 11 . . Core Remaining (%) 84 | 100 . 68 . Volleys Fired 70 | . 13 . 57 Largest 2 | . 2 . 2 Hottest 80 | . 70 . 80 Shots Fired 131 | . 26 . 105 Gun 100 | . 26 . 74 Cannon . | . . . . Launcher 31 | . . . 31 Special . | . . . . Kinetic 64 | . 13 . 51 Thermal 36 | . 13 . 23 Explosive 31 | . . . 31 Electromagnetic . | . . . . Robot Hit Streak 16 | . 3 . 16 Robot Miss Streak 4 | . 4 . 4 Penetration Max . | . . . . Secondary Targets 1 | . . . 1 Max Gunslinging Chain 1 | . . . 1 Shots Hit Robots 84 | . 11 . 73 Core Hits 61 | . 6 . 55 Critical Kills . | . . . . Critical Parts Destroyed 1 | . . . 1 Critical Strikes 3 | . . . 3 Burn 2 | . . . 2 Destroy 1 | . . . 1 Melee Attacks . | . . . . Impact . | . . . . Slashing . | . . . . Piercing . | . . . . Sneak Attacks . | . . . . Combat Hostiles . | . . . . Follow-up Attacks . | . . . . Damage Inflicted 2356 | . 111 . 2245 Guns 864 | . 111 . 753 Cannons . | . . . . Explosions 1478 | . . . 1478 Melee . | . . . . Ramming 14 | . . . 14 Kinetic 538 | . 49 . 489 Thermal 326 | . 62 . 264 Explosive 1478 | . . . 1478 Electromagnetic . | . . . . Impact . | . . . . Slashing . | . . . . Piercing . | . . . . Highest Corruption . | . . . . Average Corruption . | . . . . Corruption Purged . | . . . . Corruption Blocked . | . . . . Overload Shots . | . . . . Overflow Damage 54 | . . . 54 Projectiles . | . . . . Explosions 54 | . . . 54 Melee . | . . . . Knockbacks . | . . . . Impact . | . . . . Kinetic . | . . . . Secondary . | . . . . Self-Inflicted Damage 259 | . . . 259 Shots 12 | . . . 12 Rammed 2 | . . . 2 Targets Rammed 2 | . . . 2 Kicked . | . . . . Crushed . | . . . . Highest Temperature 190 | . 54 . 190 Average Temperature 45 | . 20 . 52 Received Heat Transfer 699 | . 69 . 630 Siege Activations . | . . . . Martial Activations . | . . . . Shielding Activations . | . . . . Robots Disrupted . | . . . . Combat Hostiles . | . . . . Robots Corrupted . | . . . . Combat Hostiles . | . . . . Parts Fried . | . . . . Impact Corruptions . | . . . . Robots Melted . | . . . . Combat Hostiles . | . . . . Parts Melted 2 | . 1 . 1 Heat Transferred 1110 | . 185 . 925 Parts Sabotaged . | . . . . Parts Stolen . | . . . . Parts Stripped . | . . . . Power Chain Reactions . | . . . . Alert | -11 -10 -10 -8 ------- Run | Yrd Mat Sub Mat Maximum Alert Level 1 | . . . 1 Low Security (%) 93 | 100 100 . 88 Level 1 6 | . . . 11 Level 2 . | . . . . Level 3 . | . . . . Level 4 . | . . . . Level 5 . | . . . . High Security . | . . . . Max Security . | . . . . Peak Influence 317 | . 81 . 317 Initial . | . . . . Average 59 | . 14 . 99 Influence Increases 853 | . 132 . 721 Destroy 0b10 Robot/C 360 | . 40 . 320 Destroy 0b10 Robot/NC 25 | . 5 . 20 Destroy Leader 80 | . 10 . 70 Successful Hack 15 | . 15 . . Disable Machine 120 | . . . 120 Destroy Structure 163 | . 2 . 161 Lose Combat Pursuer 90 | . 60 . 30 Influence Decreases 542 | . 132 . 410 Time Decay 462 | . 132 . 330 Lost Part 80 | . . . 80 Squads Dispatched 5 | . . . 5 Investigation 1 | . . . 1 Extermination . | . . . . Reinforcement 4 | . . . 4 Assault . | . . . . Garrison . | . . . . Intercept . | . . . . Searches Triggered . | . . . . Construction Impeded 3 | . . . 3 Haulers Reinforced . | . . . . Active Scanning Responses . | . . . . Cargo Convoy Interrupts . | . . . . Stealth | -11 -10 -10 -8 --------- Run | Yrd Mat Sub Mat Distress Signals . | . . . . Communications Jammed . | . . . . Distress Signals . | . . . . Times Spotted 43 | . 9 4 30 Peak Tracking Total 5 | . 2 2 5 Tactical Retreats 4 | . 2 . 2 Traps | -11 -10 -10 -8 ------- Run | Yrd Mat Sub Mat Traps Triggered . | . . . . Indirectly . | . . . . Trap Hack Attempts . | . . . . Triggered . | . . . . Disarmed . | . . . . Reprogrammed . | . . . . Reused . | . . . . Traps Extracted . | . . . . Installed . | . . . . Triggered . | . . . . Machines | -11 -10 -10 -8 ---------- Run | Yrd Mat Sub Mat Machines Disabled 8 | . . . 8 Max in Single Turn 2 | . . . 2 Machines Repaired . | . . . . Machines Dismantled . | . . . . Machines Sabotaged . | . . . . Overloaded Fab Kills . | . . . . Hacking | -11 -10 -10 -8 --------- Run | Yrd Mat Sub Mat Machines Accessed 9 | . 8 . 1 Terminals 8 | . 7 . 1 Fabricators . | . . . . Repair Stations 1 | . 1 . . Recycling Units . | . . . . Scanalyzers . | . . . . Garrison Access . | . . . . Total Hacks 17 | . 15 . 2 Successful 8 | . 8 . . Failed 9 | . 7 . 2 Catastrophic 3 | . 1 . 2 Database Lockouts . | . . . . Manual 8 | . 6 . 2 Terminals 15 | . 13 . 2 Fabricators . | . . . . Repair Stations 2 | . 2 . . Recycling Units . | . . . . Scanalyzers . | . . . . Garrison Access . | . . . . Terminal Hacks 6 | . 6 . . Record 1 | . 1 . . Branch Access Points 2 | . 2 . . Alert Level 1 | . 1 . . Unreport Threat 1 | . 1 . . Locate Traps 1 | . 1 . . Fabricator Hacks . | . . . . Repair Station Hacks 2 | . 2 . . Scan Component 1 | . 1 . . Repair 1 | . 1 . . Recycling Unit Hacks . | . . . . Scanalyzer . | . . . . Garrison Access Hacks . | . . . . Unauthorized Hacks . | . . . . Terminals . | . . . . Fabricators . | . . . . Repair Stations . | . . . . Recycling Units . | . . . . Scanalyzers . | . . . . Garrison Access . | . . . . Data Cores Recovered . | . . . . Used . | . . . . Hacking Detections 3 | . 2 . 1 Full Trace Events 1 | . . . 1 Feedback Events . | . . . . Feedback Blocked . | . . . . Robot Schematics Acquired . | . . . . Robots Built . | . . . . Authchips . | . . . . Time . | . . . . Total Robot Build Rating . | . . . . Part Schematics Acquired . | . . . . Parts Built . | . . . . Authchips . | . . . . Time . | . . . . Total Part Build Rating . | . . . . Part Studies Acquired . | . . . . Parts Repaired 1 | . 1 . . Time 26 | . 26 . . Parts Recycled . | . . . . Recycled Matter . | . . . . Retrieved Matter . | . . . . Retrieved Components . | . . . . Parts Scanalyzed . | . . . . Part Schematics Acquired . | . . . . Parts Damaged . | . . . . Bothacking | -11 -10 -10 -8 ------------ Run | Yrd Mat Sub Mat Used RIF Installer . | . . . . Robots Hacked . | . . . . Non-combat . | . . . . Combat . | . . . . Robot Hacks Applied . | . . . . Relay Couplers Released . | . . . . Fabnet Peak Effective % . | . . . . Robots Rewired . | . . . . Allies Hacked . | . . . . Hacks Repelled . | . . . . Allies | -11 -10 -10 -8 -------- Run | Yrd Mat Sub Mat Total Allies . | . . . . Largest Group . | . . . . Highest-Rated Group . | . . . . Highest-Rated Ally . | . . . . Total Orders . | . . . . Ally Attacks . | . . . . Total Damage . | . . . . Kills . | . . . . Allies Corrupted . | . . . . Allies Melted . | . . . . Intel | -11 -10 -10 -8 ------- Run | Yrd Mat Sub Mat Active Infowar (turns) 1344 | . 315 69 960 Terrain 384 | . 315 69 . Structural 960 | . . . 960 Robot Analysis Total . | . . . . Derelict Logs Recovered 1 | . . 1 . Drone Launches . | . . . . Drone Recoveries . | . . . . Exploration | -11 -10 -10 -8 ------------- Run | Yrd Mat Sub Mat Turns Passed 1953 | 73 755 144 981 Spaces Moved 1333 | 61 692 132 448 Core 25 | 25 . . . Treads 180 | . . . 180 Legs . | . . . . Wheels 951 | 36 692 132 91 Hover . | . . . . Flight 177 | . . . 177 Fastest Speed 50 | 50 80 80 86 Average Speed 109 | 95 80 80 166 Slowest Speed 352 | 200 80 80 352 Overloaded Moves . | . . . . Propulsion Burnouts . | . . . . Robots Hopped . | . . . . Potential Cave-ins . | . . . . Cave-ins Triggered . | . . . . Exploration Rate (%) 35 | 3 90 12 35 Regions Visited 3 Branch Regions 1 Pre-discovered Areas 1 | . . 1 . Known Exits Taken . | . . . . Unknown Exits Taken 3 | 1 1 1 . Scrap Searched . | . . . . Spaces Dug . | . . . . Terrain Destroyed 190 | . . . 190 Melee . | . . . . Projectile . | . . . . AOE 190 | . . . 190 Terrain Rammed . | . . . . Walls Destroyed . | . . . . Machines Disabled . | . . . . Actions | -11 -10 -10 -8 --------- Run | Yrd Mat Sub Mat Total 1687 | 74 868 170 575 Wait 207 | . 140 37 30 Move 1330 | 60 691 131 448 Hop . | . . . . Pick Up 23 | 10 7 . 6 Fast Attach 18 | 2 4 . 12 Attach 11 | 2 3 . 6 Detach 8 | . 2 . 6 Swap 2 | . 1 . 1 Drop 13 | . 5 1 7 Fire 70 | . 13 . 57 Melee . | . . . . Ram . | . . . . Kick . | . . . . Crush 2 | . . . 2 Escape Stasis . | . . . . Rewire 3 | . 2 1 . Trap . | . . . . Miscellaneous . | . . . . Route ------- -11/Scrapyard -10/Materials (discovered 5 exits: [*Mat x3] / *Min / [*Sub]) -10/Subcaves (discovered 2 exits: *Mat x2) -8/Materials History --------- Turn | Location | Event 13 | -11/Scrapyard | Discovered new exit (range 15) 74 | -11/Scrapyard | Entered Materials 75 | -10/Materials | Met a group of wandering Federalists 149 | -10/Materials | Discovered new exit (range 16) 226 | -10/Materials | Discovered new exit (range 8) 282 | -10/Materials | Discovered new exit (range 3) 320 | -10/Materials | Build established: Mutant 458 | -10/Materials | Identified exit to Mines 568 | -10/Materials | Repaired Wheel 632 | -10/Materials | Discovered new exit (range 3) 824 | -10/Materials | Discovered new exit (range 9) 829 | -10/Materials | Entered Subcaves 830 | -10/Subcaves | Continued accompanying wandering Federalists (6) 860 | -10/Subcaves | Shifting Twisted Machinery released Riot Gun 862 | -10/Subcaves | Shifting Twisted Machinery released Sub. Power Source 906 | -10/Subcaves | Lost 4 allies 910 | -10/Subcaves | Learned location of Storage (-9) 933 | -10/Subcaves | Discovered new exit (range 10) 970 | -10/Subcaves | Discovered new exit (range 10) 973 | -10/Subcaves | Entered Materials 973 | -8/Materials | Evolved 4 slots: Power x1, Propulsion x1, Utility x2 1287 | -8/Materials | Lost 3 parts (1p1n1w) 1923 | -8/Materials | Lost 4 parts (1p1n1u1w) 1953 | -8/Materials | Core integrity fell below 50% 1954 | -8/Materials | Self-destructed Last Messages --------------- 01940_ U-05 Engineer lays Concrete. 01943_ The unstable cave ceiling collapses. 01943_ K-01 Serf collects debris. 01943_ U-05 Engineer lays Concrete. 01944_ The unstable cave ceiling collapses. 01944_ U-05 Engineer lays Concrete. 01946_ K-01 Serf collects debris. 01947_ U-05 Engineer lays Concrete. 01949_ Lgt. Treads destroyed. 01949_ U-05 Engineer lays Concrete. 01950_ K-01 Serf collects debris. 01951_ U-05 Engineer lays Concrete. 01951_ Destroyed Imp. Aluminum Leg. 01951_ G-47 Trooper destroyed. 01951_ U-05 Engineer builds a Wall. 01952_ U-05 Engineer lays Concrete. 01953_ The unstable cave ceiling collapses. 01953_ U-05 Engineer lays Concrete. 01953_ K-01 Serf collects debris. 01954_ U-05 Engineer lays Concrete. Map ----- +----------------------------------------------------+ | | | ?????????????????????????????????????????????????? | | ?????????????????????????????????????????????????? | | ?????????????????????????????????????????????????? | | ????????????????????????????????????????????????## | | ????????????????????????????????????????????????## | | ????????????????????????????????????????????????## | | ????????????????????????????????????????????????## | | ????????????????????????????????????????????????## | | ????????????????????????????????????????????????## | | ????????????????????????????????????????????????## | | ????????????????????????????????????????????????## | | ???????????????? ???????????????????????????????## | | ????????? ??????????????????????????????## | | ????????+####### ???????????????????????????????? | | ???????? # # ## ####??????????????????????????? | | ???????? #######???????????????????????? | | ????????? ####???????????????????????? | | ???????? ??????????????????????? | | ???????? # ######????????????????????? | | ??????? ####????????????????????? | | ??????# ] * = ##????????????#####???? | | ??????## # ## % #???????###########??? | | ??????#/]=# [ ####????############### | | ???????/]= # # g#l ############# ##### | | ????????? ## u @ ########## | | ????????? # | | ????????? # | | ????????? # % ###### | | ????????? # k = """ ###### ##### | | ?????????## ### ^^ u"""" ########+######## | | ????????? ### ### # | | ??????????????## ### """ """ """ # | | ??????????????## """ ### """ """ """ # | | ??????????????###### k """" ### """ """ """ # | | ??????????????### # % % """ ### # | | ???????????????### # % ### """ """ # | | ???????????????### ###!] """ """ # | | ????????????????## """" ###][ " " "" # | | ????????????????#### """" #### # | | ????????????????#### """" #### # | | ????????############ #### [ [%* # | | ????????############ ########+## ## | | ?? ###### /* ### ## | | ??+####### ### """"" ### # | | ?? "T" ### """"" ####### | | ????????## # """"" #### | | ????????## # """"" ##????? | | ????????## #########+######## # """"" ##????? | | ??????? ## ###### #### # """"" ##????? | +----------------------------------------------------+ Best States ------------- Heat Dissipation 31 Energy Generation 23 Energy Capacity 450 Matter Stores 300 Matter Capacity 300 Sight Range 16 Terrain Scan Range 14 Terrain Scan Density 10 Utility Shielding 33 Weapon Shielding 66 Evasion (%) 44 Target Analysis 5 Recoil Reduction 2 Item Schematics ----------------- None Robot Schematics ------------------ None Fabricated ------------ Nothing Repaired ---------- Wheel | 72% | -10/Materials Studied --------- None Alien Tech Used ----------------- None Achievements -------------- Strength In Numbers That Tickles Challenges ------------ None Game ------ Seed ThiefSpreadDatajack Manual? 0 Play Time 00:34:38 Cumulative 10.2 hours Start 2026.01.18 @ 21:06:31 End 2026.01.18 @ 21:39:21 Sessions 1 Manual Loads 0 Difficulty Rogue Special Mode None Game No. 12 Rogue 8 Adventurer 4 Explorer 0 Win Type - Total 0 Types 0/0/0/0/0/0/0/0/0/0 Lore% 2 Gallery% 13 Achievement% 12 Wizard Run 0 Options --------- Layout 0 ASCII 0 Keyboard 1 Movement Numpad Keybinds 0 Fullscreen 1 Font 24/Smallcaps Map View 38x25 Zoom Use 96% Tactical HUD 1 Map Filters NONE Filters NONE Steam 1 RUN: 16d622d2-b4ad-4977-ab64-36c2f15ca5a8